[Event "XIII Marques de Pombal 2022"]
[Site "Pombal"]
[Date "2022.10.04"]
[Round "1.1"]
[White "Khamrakulov, Ibragim S."]
[Black "Gomes, Micael"]
[Result "1-0"]
[ECO "B10"]
[WhiteElo "2421"]
[BlackElo "1516"]
[Annotator "TA"]
[PlyCount "53"]
[EventDate "2022.09.28"]
[EventType "swiss"]
[EventCountry "POR"]
[SourceTitle "playchess.com"]
[Source "ChessBase"]
[SourceQuality "1"]
[TimeControl "5400+30"]

{[%evp 14,53,43,36,46,58,53,67,79,48,60,53,83,107,98,75,87,71,84,77,289,99,531,527,538,525,860,862,860,859,899,914,918,927,1060,1060,5904,1657,5414,5406,29984,29985]} 1. e4 {[%emt 0:00:12]} c6 {[%emt 0:00:16]} 2. c4 {[%emt 0:00:40]} d5 {[%emt 0:00:23]} 3. cxd5 {[%emt 0:00:51]} cxd5 {[%emt 0:00:12]} 4. exd5 {[%emt 0:00:17]} Nf6 {[%emt 0:00:16]} 5. Nc3 {[%emt 0:00:50]} Nxd5 {[%emt 0:01:26]} 6. Bc4 {[%emt 0:07:35]} Nf6 {[%emt 0:14:37]} 7. Nf3 {[%emt 0:01:42]} e6 {[%emt 0:03:28]} 8. d4 {[%emt 0:01:45]} Qc7 {[%emt 0:06:51] D26: Queen's Gambit Accepted: 4 e3 e6 5 Bxc5 c5 sidelines.} 9. Qe2 {[%emt 0:05:44]} Bb4 {[%emt 0:05:07]} 10. O-O {[%emt 0:00:52]} O-O {[%emt 0:01:06] [#] White is slightly better.} 11. Nb5 $146 {[%emt 0:05:50]} ({Predecessor:} 11. Bg5 Nc6 12. Bxf6 gxf6 13. Rac1 Bxc3 14. Rxc3 Qf4 15. Rd1 Kh8 16. d5 Ne5 17. Nxe5 Qxe5 {1-0 (28) Hogar,R (1760)-Bieszk,S (915) LSS email 2016}) 11... Qd8 {[%emt 0:01:23]} 12. a3 {[%emt 0:01:05]} Bd6 {[%emt 0:05:50]} 13. Bg5 {[%emt 0:02:51]} Be7 {[%emt 0:00:18]} 14. Rfe1 {[%emt 0:26:49] White is much more active.} a6 {[%emt 0:01:37]} 15. Nc3 {[%emt 0:04:36]} b5 {[%emt 0:00:08]} 16. Ba2 {[%emt 0:00:29] Threatens to win with Rad1.} Bb7 $2 {[%emt 0:00:25]} (16... Ra7 $16 {was called for.}) 17. Rad1 $2 {[%emt 0:00:19]} (17. d5 $1 $18 {[%cal Rd5e6]}) 17... Nd5 {[%emt 0:17:40][%mdl 8192]} (17... Bxf3 $16 {is tougher.} 18. Qxf3 Ra7) 18. Bxd5 $18 {[%emt 0:01:30]} Bxd5 {[%emt 0:02:10]} 19. Bxe7 {[%emt 0:00:13]} Bxf3 {[%emt 0:06:54]} 20. Qxf3 {[%emt 0:00:43]} ({Inferior is} 20. Bxd8 Bxe2 21. Rxe2 Rxd8 $11) 20... Qxe7 {[%emt 0:01:07]} 21. Qxa8 {[%emt 0:02:11]} Qd6 {[%emt 0:00:12]} 22. d5 {[%emt 0:00:36] [#] Hoping for dxe6.} Qb6 {[%emt 0:01:18]} 23. Re2 {[%emt 0:02:06]} Rd8 {[%emt 0:01:11]} 24. dxe6 {[%emt 0:00:47] Intending Rxd8+ and mate.} fxe6 {[%emt 0:07:18]} 25. Rxd8+ {[%emt 0:00:40]} Qxd8 {[%emt 0:00:15]} 26. Rxe6 {[%emt 0:00:13] [#] White wants to mate with Qe4.} h6 {[%emt 0:01:00]} 27. Qe4 {[%emt 0:00:47] Weighted Error Value: White=0.25 (precise) /Black=1.25} 1-0

[Event "XIII Marques de Pombal 2022"]
[Site "Pombal"]
[Date "2022.10.04"]
[Round "1.2"]
[White "Araujo, Ricardo Franca P D"]
[Black "Padeiro, Jose Joao Tato"]
[Result "0-1"]
[ECO "B10"]
[WhiteElo "1484"]
[BlackElo "2215"]
[Annotator "TA"]
[PlyCount "58"]
[EventDate "2022.09.28"]
[EventType "swiss"]
[EventCountry "POR"]
[SourceTitle "playchess.com"]
[Source "ChessBase"]
[SourceQuality "1"]
[TimeControl "5400+30"]

{[%evp 15,58,0,5,-4,0,-14,-2,-11,-10,-11,0,0,0,0,0,7,0,0,0,0,10,0,16,-150,-161,-354,-352,-481,-464,-494,-502,-489,-446,-1281,-1024,-964,-542,-2029,-1240,-1232,-1185,-1427,-1445,-29996,-29997]} 1. e4 {[%emt 0:00:02]} c6 {[%emt 0:00:06]} 2. Nf3 {[%emt 0:00:05]} d5 {[%emt 0:00:10]} 3. Nc3 {[%emt 0:00:11]} dxe4 {[%emt 0:00:57]} 4. Nxe4 {[%emt 0:00:10]} Nf6 {[%emt 0:00:04]} 5. Nxf6+ {[%emt 0:00:40]} exf6 {[%emt 0:01:07]} 6. Be2 {[%emt 0:02:29]} Bd6 {[%emt 0:00:41]} 7. O-O {[%emt 0:00:58]} O-O {[%emt 0:00:08]} 8. d4 {[%emt 0:00:42]} Re8 {[%emt 0:01:27]} 9. c3 {[%emt 0:01:46] B15: Caro-Kann: 3 Nc3: 3...g6 and 3...dxe4 4 Nxe4 Nf6 5 Nxf6+ exf6.} Nd7 {[%emt 0:00:36]} 10. Qc2 {[%emt 0:03:42]} Nf8 {[%emt 0:00:39]} 11. Be3 {[%emt 0:01:52] The position is equal.} Ng6 {[%emt 0:04:38] [#]} 12. Bd3 $146 {[%emt 0:01:22]} ({Predecessor:} 12. g3 Bg4 13. Rfe1 h5 14. Nd2 Qd7 15. Bd3 f5 16. f3 Bh3 17. f4 f6 18. Nf3 {0-1 (35) Ozbay,E (2027)-Balajayeva,K (2376) Playchess.com INT 2020}) 12... Bg4 {[%emt 0:01:13][%cal Bc8g4,Bg4e6,Be6d5][%mdl 32]} 13. Nd2 {[%emt 0:01:14][%cal Bf3d2,Bd2f1,Bf1g3][%mdl 32]} Bc7 {[%emt 0:00:48]} 14. Rfe1 {[%emt 0:05:28]} Qd6 {[%emt 0:04:04]} 15. Nf1 {[%emt 0:01:17]} Rad8 {[%emt 0:04:02]} 16. h3 {[%emt 0:02:23]} Be6 {[%emt 0:03:38]} 17. Rad1 {[%emt 0:01:59]} b5 {[%emt 0:03:05]} (17... Bxa2 $2 18. b3 $18) 18. Ng3 {[%emt 0:02:40]} Nh4 {[%emt 0:04:04]} (18... Bxa2 $2 19. b3 $18) 19. Qe2 $2 {[%emt 0:03:50]} (19. Bxh7+ $11 Kh8 20. Be4) 19... g6 $17 {[%emt 0:04:44] [#] ...Bd5 is the strong threat. Black is more active.} ({Much weaker is} 19... Qd5 $6 20. Be4 Qd7 {[#]} 21. Bxh7+ $1 (21. Qh5 Ng6 $11) 21... Kxh7 22. Qh5+ Kg8 23. Qxh4 $11) 20. f4 $2 {[%emt 0:04:47]} (20. c4) 20... Bd5 $19 {[%emt 0:03:04]} ({Weaker is} 20... Bxa2 21. Qg4 (21. Ne4 Rxe4 22. Bxe4 f5 $11) 21... Rxe3 22. Rxe3 Qxf4 23. Nf1 $11) 21. Qg4 {[%emt 0:03:14]} Nxg2 {[%emt 0:00:48]} 22. Nf5 {[%emt 0:01:35]} Qf8 {[%emt 0:04:13] Threatens to win with ...Kh8.} 23. Re2 {[%emt 0:00:41]} Kh8 {[%emt 0:06:47]} 24. Kh2 {[%emt 0:04:26]} (24. Rxg2 $142 gxf5 25. Qxf5) 24... Rxe3 {[%emt 0:05:14]} 25. Rxg2 {[%emt 0:01:21]} Rxd3 {[%emt 0:03:22]} 26. Qh4 {[%emt 0:00:33]} Bxf4+ {[%emt 0:03:42]} 27. Qxf4 {[%emt 0:00:09]} Rxd1 {[%emt 0:00:42]} 28. Qh4 {[%emt 0:00:31]} Rd6 {[%emt 0:01:27]} 29. Nxd6 {[%emt 0:00:48]} Qxd6+ {[%emt 0:00:07] Weighted Error Value: White=1.13/Black=0.73} 0-1

[Event "XIII Marques de Pombal 2022"]
[Site "Pombal"]
[Date "2022.10.04"]
[Round "1.3"]
[White "Povshednyi, Ivan"]
[Black "Bravo, Ricardo Antonio Rodr"]
[Result "1-0"]
[ECO "A06"]
[WhiteElo "2140"]
[BlackElo "1472"]
[Annotator "TA"]
[PlyCount "67"]
[EventDate "2022.09.28"]
[EventType "swiss"]
[EventCountry "POR"]
[SourceTitle "playchess.com"]
[Source "ChessBase"]
[SourceQuality "1"]
[TimeControl "5400+30"]

{[%evp 17,67,35,29,34,72,58,87,88,111,117,100,99,166,141,172,86,65,60,60,61,202,161,270,264,462,473,453,351,341,331,312,285,280,283,564,558,550,522,735,586,4686,2438,4914,1420,29987,29988,29991,29992,29992,29992,29992,29993]} 1. Nf3 {[%emt 0:00:06]} d5 {[%emt 0:01:56]} 2. g3 {[%emt 0:00:13]} Nf6 {[%emt 0:03:12]} 3. Bg2 {[%emt 0:00:14]} e6 {[%emt 0:04:23]} 4. O-O {[%emt 0:00:13]} c5 {[%emt 0:01:52]} 5. c4 {[%emt 0:00:13]} Be7 {[%emt 0:04:00]} 6. d4 {[%emt 0:00:36]} O-O {[%emt 0:06:37]} 7. cxd5 {[%emt 0:01:02]} Nxd5 {[%emt 0:02:00]} 8. dxc5 {[%emt 0:00:19]} Bxc5 {[%emt 0:01:39]} 9. a3 {[%emt 0:00:28]} Nc6 {[%emt 0:04:43]} 10. b4 {[%emt 0:00:55] E06: Closed Catalan: Early deviations.} Bd6 {[%emt 0:06:07]} 11. Bb2 {[%emt 0:00:20] [#]} Qc7 $146 {[%emt 0:08:58]} ({Predecessor:} 11... b5 12. Nd4 Nxd4 13. Qxd4 {1-0 (13) Blair,M-Heyboer,P LSS email 2008}) 12. Nbd2 {[%emt 0:00:27] White is better.} a6 {[%emt 0:02:38]} 13. Nc4 {[%emt 0:00:55] And now e4 would win.} Be7 {[%emt 0:00:49][%cal Oc6b4]} 14. Rc1 {[%emt 0:00:20]} Qd8 {[%emt 0:03:07]} (14... Rd8 $16) 15. Qb3 $36 {[%emt 0:01:01][%mdl 2048] White is on the roll.} Bd7 {[%emt 0:09:01] [#]} 16. Nfe5 {[%emt 0:04:25]} (16. Rfd1 $1 $18) 16... Nxe5 $16 {[%emt 0:07:46]} 17. Nxe5 {[%emt 0:00:25]} Bb5 {[%emt 0:03:47]} 18. Rfe1 {[%emt 0:02:58]} f6 {[%emt 0:03:12] This costs Black the game.} ({Better is} 18... Rc8 $14) 19. Nf3 {[%emt 0:03:19]} Be8 {[%emt 0:03:52]} (19... Qd7 $142 20. Nd4 Ba4) 20. Red1 $18 {[%emt 0:02:34] Black must now prevent e4.} Qb6 $2 {[%emt 0:04:11]} (20... Bd7 21. Nd4 Kh8 22. Nxe6 Bxe6 23. Bxd5 Bxd5 24. Rxd5 Qe8) 21. e4 {[%emt 0:01:44]} Nxb4 {[%emt 0:06:07]} 22. axb4 {[%emt 0:00:23]} Qxb4 {[%emt 0:00:20]} 23. Qxb4 {[%emt 0:07:04]} ({Don't take} 23. Qxe6+ Bf7 24. Qd7 Rad8) 23... Bxb4 {[%emt 0:00:07]} 24. Bh3 {[%emt 0:01:59]} e5 {[%emt 0:03:43]} 25. Rc7 {[%emt 0:00:33]} Bc6 $2 {[%emt 0:01:08]} (25... Kh8 26. Rxb7 a5) 26. Be6+ {[%emt 0:07:43]} Kh8 {[%emt 0:00:12] [#]} 27. Nxe5 $1 {[%emt 0:06:02][%cal Bf3e5,Be5c6,Bc6b4,Bb4d5,Bd5f4,Bf4d5,Bd5f6][%mdl 544]} Rae8 {[%emt 0:06:10]} (27... fxe5 28. Bxe5) 28. Nxc6 {[%emt 0:01:02]} Rxe6 {[%emt 0:01:05]} 29. Nxb4 {[%emt 0:00:11]} a5 {[%emt 0:00:55]} 30. Nd5 {[%emt 0:00:37][%cal Od5f6] White wants to mate with Nxf6!} b5 {[%emt 0:00:42]} 31. Nf4 {[%emt 0:00:15] White mates.} Rb6 {[%emt 0:00:39]} 32. Rdd7 {[%emt 0:00:16]} Rg8 {[%emt 0:00:24]} 33. Nd5 {[%emt 0:00:15]} Re6 {[%emt 0:00:46] [#]} 34. Nxf6 $1 {[%emt 0:00:33] Weighted Error Value: White=0.23 (precise) /Black=0.69} 1-0

[Event "XIII Marques de Pombal 2022"]
[Site "Pombal"]
[Date "2022.10.05"]
[Round "1.4"]
[White "Correia, Pedro Mourao Soares"]
[Black "Goncalves, Samuel Jesus Pereira"]
[Result "0-1"]
[ECO "B10"]
[WhiteElo "1468"]
[BlackElo "2072"]
[Annotator "TA"]
[PlyCount "66"]
[EventDate "2022.09.28"]
[EventType "swiss"]
[EventCountry "POR"]
[SourceTitle "playchess.com"]
[Source "ChessBase"]
[SourceQuality "1"]
[TimeControl "5400+30"]

{[%evp 9,66,0,0,-8,-6,-6,-5,0,-7,-6,-8,-6,-11,-18,-19,-24,-16,-35,-31,-42,-20,-62,-48,-45,-30,-38,-37,-33,-34,-45,-27,-27,0,-55,-53,-60,-59,-59,-73,-55,-62,-81,-19,-95,-71,-83,-39,-37,-29,-452,-444,-599,-577,-1659,-1677,-6191,-6191,-29997,-29998]} 1. e4 {[%emt 0:00:07]} c6 {[%emt 0:00:18]} 2. Nf3 {[%emt 0:00:16]} d5 {[%emt 0:00:18]} 3. Nc3 {[%emt 0:00:13]} g6 {[%emt 0:01:43]} 4. exd5 {[%emt 0:02:35]} cxd5 {[%emt 0:00:14]} 5. Bb5+ {[%emt 0:00:51]} Bd7 {[%emt 0:01:46]} 6. Qe2 {[%emt 0:01:09] B11: Caro-Kann: Two Knights Variation.} Nf6 {[%emt 0:08:42]} 7. O-O {[%emt 0:02:54]} a6 {[%emt 0:12:23]} 8. Bxd7+ {[%emt 0:00:16] The position is equal.} Nbxd7 {[%emt 0:00:23]} 9. d4 {[%emt 0:00:24]} Bg7 {[%emt 0:04:06]} 10. Re1 {[%emt 0:02:44]} e6 {[%emt 0:01:06]} 11. Bg5 {[%emt 0:06:08][%cal Oc3d5]} O-O {[%emt 0:00:46] [#]} 12. a4 $146 {[%emt 0:09:09]} ({Predecessor:} 12. Ne5 Qc7 13. Qf3 Nxe5 14. dxe5 Nd7 15. Bf4 Nxe5 16. Qg3 f6 17. Nd1 Rac8 18. Ne3 {0-1 (44) Schoene,S-Lodes,H (2129) Forchheim 2011}) 12... Qc7 {[%emt 0:16:23]} 13. a5 {[%emt 0:05:34]} Rfc8 {[%emt 0:09:37]} 14. Qd3 {[%emt 0:07:51]} Qc4 {[%emt 0:10:33]} 15. Ra4 {[%emt 0:09:47]} Qc6 {[%emt 0:04:27][%cal Of6e4]} 16. Rb4 {[%emt 0:10:28]} Ne8 {[%emt 0:16:57]} 17. Bf4 {[%emt 0:11:47]} Bf8 {[%emt 0:03:06]} 18. Rb3 {[%emt 0:11:35]} Bd6 {[%emt 0:00:53]} 19. Qd2 {[%emt 0:07:55]} Qc7 {[%emt 0:02:04]} 20. Ne5 {[%emt 0:03:08]} Bxe5 {[%emt 0:00:19]} (20... Rab8 {feels hotter.} 21. Nd1 Nxe5 22. dxe5 Be7) 21. Bxe5 {[%emt 0:01:49]} (21. dxe5 $11 Qxa5 22. Rxb7) 21... Nxe5 $15 {[%emt 0:00:08]} 22. dxe5 {[%emt 0:01:15]} Qxa5 {[%emt 0:01:20]} 23. Rxb7 {[%emt 0:02:26]} Rab8 {[%emt 0:00:18]} 24. Rxb8 {[%emt 0:01:03]} Rxb8 {[%emt 0:00:06]} 25. Rb1 {[%emt 0:00:50]} Ng7 {[%emt 0:02:19]} (25... Qc7 $17 26. f4 Qc5+ 27. Kh1 Rc8) 26. g4 {[%emt 0:00:24]} (26. Ne4 $1 $11 Qxd2 27. Nxd2) 26... Qb4 {[%emt 0:00:08]} 27. Qe2 {[%emt 0:00:28]} h5 $36 {[%emt 0:00:29][%cal Bh7h5,Bh5g4][%mdl 2080] Black fights for an advantage.} 28. h3 {[%emt 0:00:16]} Rc8 {[%emt 0:01:35][%cal Bb8c8,Bc8c3,Bc3h3][%mdl 32] [#] White must now prevent ...Rxc3.} 29. Qf1 $2 {[%emt 0:00:47][%mdl 8192] This move loses the game for White.} (29. Nd1 $11 {and White is okay.}) 29... hxg4 $19 {[%emt 0:00:21]} 30. Qxa6 {[%emt 0:00:25]} Rxc3 {[%emt 0:01:10]} 31. Qa8+ {[%emt 0:00:43]} Kh7 {[%emt 0:00:07]} 32. Ra1 {[%emt 0:00:30]} Rxh3 {[%emt 0:00:39] [#] ( -> ...Qe4)} 33. Qa7 {[%emt 0:00:34]} Qe4 {[%emt 0:00:17] Weighted Error Value: White=0.99/Black=0.09 (flawless)} 0-1

[Event "XIII Marques de Pombal 2022"]
[Site "Pombal"]
[Date "2022.10.05"]
[Round "1.5"]
[White "Gori, Andrea"]
[Black "Paiva, Manuel Maria Fonseca"]
[Result "1-0"]
[ECO "B52"]
[WhiteElo "1982"]
[BlackElo "1451"]
[Annotator "TA"]
[PlyCount "119"]
[EventDate "2022.09.28"]
[EventType "swiss"]
[EventCountry "POR"]
[SourceTitle "playchess.com"]
[Source "ChessBase"]
[SourceQuality "1"]
[TimeControl "5400+30"]

{[%evp 10,119,0,12,13,-1,15,-12,0,-14,-7,-31,0,-4,0,-36,-20,-26,-10,-7,0,0,0,0,0,-59,-59,-59,-55,-47,-41,-52,-35,-50,-36,-59,-49,-108,0,0,0,0,0,0,0,0,0,-5,-4,-4,0,-4,0,-4,0,0,0,0,0,0,0,0,0,0,0,0,0,0,0,0,0,0,0,0,0,0,0,0,0,0,208,208,208,0,0,0,0,0,555,377,547,0,0,0,0,0,0,0,0,0,0,0,12837,12837,12837,12837,12846,12847,12847,12847,12850,12843]} 1. e4 c5 2. Nf3 d6 3. Bb5+ Bd7 4. a4 Nf6 5. d3 Nc6 6. O-O g6 {B52: Sicilian: Moscow Variation with 3...Bd7.} 7. Bg5 Bg7 8. Bxc6 Bxc6 {[#] The position is equal.} 9. c4 $146 ({Predecessor:} 9. Nc3 O-O 10. Qe2 Qc7 11. Rfe1 Rfe8 12. Red1 a6 13. Qd2 Rac8 14. Bh6 Bh8 15. Qg5 {0-1 (44) Comp Novag Diablo-Van der Giessen,A (2045) The Hague 1992}) 9... O-O 10. Qd2 Nd7 11. Nc3 Ne5 12. Ne1 f5 (12... Qd7 $5 {[%cal Rf7f5]}) 13. Nd5 $1 Bxd5 14. exd5 Qd7 15. f4 Nf7 16. Nf3 Rae8 17. Ra2 (17. Rae1 $11) 17... e6 18. dxe6 Rxe6 19. Bh4 Rfe8 20. Re1 {Against Re2} d5 {Threatens to win with ...dxc4.} 21. b3 dxc4 (21... Nd8 {feels hotter.} 22. Rxe6 Nxe6 23. Bf2 a6) 22. dxc4 Rxe1+ 23. Nxe1 (23. Bxe1 $15 Qc6 24. Qd1) 23... Qxd2 ({Black should try} 23... Bd4+ $17 24. Bf2 Nd6 25. Bxd4 Ne4) 24. Rxd2 $11 Bc3 25. Rd1 Bxe1 26. Rxe1 Rxe1+ 27. Bxe1 {[%mdl 4096] Endgame KB-KN} Nd8 28. b4 Ne6 29. g3 Kf7 30. Kf2 Ke7 31. Ke3 Kd6 32. b5 Nd4 33. Bc3 Ne6 34. Be5+ Kd7 35. Kd3 Nf8 36. Bg7 Ne6 37. Be5 Ke7 38. Ke3 Nf8 39. Bc3 Nd7 40. Kd3 Kd6 41. Bg7 Kc7 42. a5 a6 43. Kc3 Kd6 44. Kd3 axb5 $2 (44... Kc7 $11 {and Black is okay.}) 45. cxb5 $18 {Strongly threatening Kc4.} Kd5 {[#]} 46. h3 $2 ({White has to play} 46. Kc3 $1 $18) 46... c4+ $1 $11 47. Kc3 {And now a6 would win.} Nc5 {Against a6} 48. g4 Nd3 $2 {[%mdl 8192]} (48... Ne4+ $11 {and Black has nothing to worry.} 49. Kb4 Nc5) 49. gxf5 gxf5 50. Be5 $2 {[#]} ({White must play} 50. a6 $18 bxa6 51. bxa6) 50... Nc5 51. Bg7 h5 52. Bh8 Nd3 53. a6 bxa6 54. bxa6 Kc6 55. Be5 Kb6 $2 {[%mdl 8192]} (55... h4 $11) 56. Kxc4 $18 {White is clearly winning.} Ne1 57. Kd5 Kxa6 58. Ke6 Kb5 59. Kxf5 Kc5 60. Ke6 {Weighted Error Value: White=0.33/Black=0.31} 1-0

[Event "XIII Marques de Pombal 2022"]
[Site "Pombal"]
[Date "2022.10.04"]
[Round "1.6"]
[White "Santos, Amadeu Solha"]
[Black "Peixoto, Helio Ricardo Soutin"]
[Result "0-1"]
[ECO "A45"]
[WhiteElo "1422"]
[BlackElo "1969"]
[Annotator "TA"]
[PlyCount "66"]
[EventDate "2022.09.28"]
[EventType "swiss"]
[EventCountry "POR"]
[SourceTitle "playchess.com"]
[Source "ChessBase"]
[SourceQuality "1"]
[TimeControl "5400+30"]

{[%evp 9,66,-12,-17,-52,-4,-75,-87,-88,-63,-86,-79,-84,-70,-132,-92,-87,-82,-243,-240,-324,-315,-252,-194,-177,-166,-166,-125,-121,-118,-392,-390,-606,-609,-536,-366,-391,-155,-141,-153,-383,-372,-544,-238,-237,-231,-248,-256,-377,-143,-231,-259,-726,-728,-722,-720,-716,-693,-846,-794]} 1. d4 {[%emt 0:00:06]} Nf6 {[%emt 0:00:12]} 2. Bf4 {[%emt 0:00:13]} g6 {[%emt 0:00:11]} 3. e3 {[%emt 0:00:12]} Bg7 {[%emt 0:00:26]} 4. Nc3 {[%emt 0:00:23]} d6 {[%emt 0:05:53]} 5. Bb5+ {[%emt 0:01:04]} c6 {[%emt 0:00:55]} 6. Ba4 {[%emt 0:00:17] [#] A45: Trompowsky Attack.} Nh5 $146 {[%emt 0:02:29]} (6... a5 $15 7. Bb3 b5) ({Predecessor:} 6... O-O 7. Nf3 Qa5 8. Nd2 b5 9. Bb3 Qb6 10. Qf3 Bb7 11. h3 Nbd7 12. O-O c5 13. a3 Bxf3 {0-1 (13) Weise,C-Koptschok,M freechess.de 2017}) 7. Bg3 {[%emt 0:06:19]} (7. Bg5 $11 {keeps the balance.}) 7... Nxg3 $17 {[%emt 0:00:20]} 8. hxg3 {[%emt 0:00:10] Black is better.} a5 {[%emt 0:00:16]} (8... O-O {looks sharper.} 9. Bb3 Nd7 10. a3 a5) 9. a3 {[%emt 0:01:01]} Nd7 {[%emt 0:04:57][%cal Bb8d7,Bd7f6,Bf6g4][%mdl 32]} (9... O-O {with more complications.} 10. Bb3 Nd7 11. Nf3 b5) 10. Nf3 {[%emt 0:01:24]} Nf6 {[%emt 0:03:38]} 11. d5 {[%emt 0:05:31]} ({White should play} 11. e4 $15) 11... Bd7 {[%emt 0:05:40]} 12. dxc6 {[%emt 0:01:34]} bxc6 {[%emt 0:00:42]} 13. b4 $2 {[%emt 0:04:23]} (13. e4 $17) 13... O-O $19 {[%emt 0:07:28]} 14. Rb1 {[%emt 0:00:43]} axb4 {[%emt 0:04:45]} 15. axb4 {[%emt 0:00:27]} Ng4 {[%emt 0:00:29]} 16. Nd4 {[%emt 0:05:14]} c5 $36 {[%emt 0:09:01][%mdl 2048] Black is on the roll.} 17. Bxd7 {[%emt 0:00:47]} Qxd7 {[%emt 0:00:14]} 18. bxc5 {[%emt 0:00:28]} dxc5 {[%emt 0:00:24]} 19. Nde2 {[%emt 0:00:56][%mdl 8192]} (19. Ndb5 $17 {is the only way for White.} Qf5 20. Qe2) 19... Qf5 {[%emt 0:01:58]} 20. Rf1 {[%emt 0:05:09]} (20. f3 $142 Nxe3 21. Qd2 Nxc2+ 22. Kf2) 20... Rfd8 {[%emt 0:02:47]} 21. Qc1 {[%emt 0:02:10]} Qe6 {[%emt 0:10:10] [#] aiming for ...Bxc3+.} 22. Rb3 {[%emt 0:04:51]} Qc4 $2 {[%emt 0:01:39]} (22... Qd6 $19 {[%cal Oa8a1] has better winning chances. Hoping for ...Ra1!} 23. Rb1 Bxc3+ 24. Nxc3 Qe5) 23. f3 $17 {[%emt 0:03:15]} Ne5 {[%emt 0:01:12] Black is much more active.} 24. Qb2 {[%emt 0:01:06]} (24. Ra3 $17) 24... Nc6 $19 {[%emt 0:04:33]} 25. Ra3 {[%emt 0:04:33]} (25. Qc1 $142) 25... Rab8 {[%emt 0:03:48]} (25... Rxa3 $142 26. Qxa3 Nb4) 26. Qa2 {[%emt 0:01:01]} Qxa2 {[%emt 0:01:45]} 27. Nxa2 {[%emt 0:00:32]} Rb2 {[%emt 0:00:22][%cal Bb8b2,Bb2c2,Bc2c1][%mdl 32]} 28. Ra6 {[%emt 0:00:51]} (28. Kf2 {is a better defense.}) 28... Nb8 $2 {[%emt 0:01:37]} (28... Ne5 $19 {and Black stays clearly on top.} 29. Kf2 Rxc2) 29. Ra5 {[%emt 0:02:34]} (29. Ra8 $17) 29... Rxc2 {[%emt 0:00:16] [#] Threatens to win with ...Nc6.} 30. Nac1 $2 {[%emt 0:00:25]} (30. Ra8) 30... Bc3+ {[%emt 0:01:35] Black is clearly winning.} 31. Nxc3 {[%emt 0:03:25]} Rxc1+ {[%emt 0:00:07]} ({Avoid the trap} 31... Rxc3 $2 32. Ne2 Rc2 33. Ra8 $17) 32. Kf2 {[%emt 0:00:44]} Rxc3 {[%emt 0:00:32]} 33. Rb1 {[%emt 0:00:45]} Nc6 {[%emt 0:00:25] Weighted Error Value: White=0.98/Black=0.53} 0-1